bitfinex/quotes_SOLUSD_20220306
["timestamp","ask_amount","ask_price","bid_price","bid_amount"]
[1646609088353,24.6252,84.345,84.251,117.0]
[1646609088554,30.6875,84.356,84.271,117.0]
[1646609088754,5.93,84.355,84.28,13.94]
[1646609088953,23.0773,84.391,84.28,13.94]
[1646609088954,3.06648914,84.381,84.28,13.94]
[1646609089154,3.06648914,84.383,84.28,13.94]
[1646609089354,3.06648914,84.384,84.28,13.94]
[1646609089554,117.0,84.383,84.29,17.7915]
[1646609089754,9.51286802,84.382,84.291,57.76965381]
[1646609089954,6.44637888,84.382,84.291,57.76965381]
[1646609090353,3.06648914,84.384,84.291,57.76965381]
[1646609090756,3.06648914,84.387,84.291,57.76965381]
[1646609091155,6.44637888,84.388,84.31,17.7924]
[1646609091156,5.928,84.386,84.31,17.7924]
[1646609091355,6.44637888,84.388,84.311,62.82705077]
[1646609091568,24.6683,84.39,84.311,62.82705077]
[1646609091856,5.926,84.389,84.311,62.82705077]
[1646609092058,24.6683,84.39,84.311,62.82705077]
[1646609092556,24.6683,84.39,84.33,17.786]
[1646609092759,24.6683,84.39,84.33,76.70534121]
[1646609093157,5.926,84.389,84.33,76.70534121]
[1646609093557,24.6683,84.39,84.33,76.70534121]
[1646609093759,24.6683,84.39,84.33,17.786]
[1646609094159,117.0,84.389,84.3,59.3058]
[1646609094358,24.6683,84.39,84.29,13.94]
[1646609094359,117.0,84.387,84.29,13.94]
[1646609094557,3.06648914,84.382,84.28,13.94]
[1646609094757,0.21548493,84.379,84.28,13.94]
[1646609094957,0.21548493,84.376,84.28,13.94]
[1646609095157,117.0,84.369,84.28,31.742]
[1646609095360,3.06648914,84.368,84.28,31.742]
[1646609095557,117.0,84.367,84.28,31.742]
[1646609095756,6.44648839,84.368,84.28,31.742]
[1646609095757,12.37548839,84.366,84.28,31.742]
[1646609095957,24.59911753,84.375,84.281,59.36237043]
[1646609096357,8.82212769,84.374,84.281,59.36237043]
[1646609096558,5.929,84.373,84.281,59.36237043]
[1646609097161,2.37487509,84.374,84.281,59.36237043]
[1646609097359,2.37487509,84.374,84.29,17.794]
[1646609097658,24.2466,84.38,84.29,17.794]
[1646609097659,5.928,84.373,84.29,17.794]
[1646609097862,24.2466,84.38,84.29,31.734]
[1646609098558,24.2466,84.38,84.291,117.0]
[1646609098758,24.6683,84.39,84.32,17.7861]
[1646609098959,24.6683,84.39,84.321,58.53682767]
[1646609099261,5.926,84.389,84.321,58.53682767]
[1646609099559,5.926,84.389,84.292,23.7014]
[1646609099560,17.792,84.38,84.292,23.7014]
[1646609099758,5.928,84.379,84.292,23.7014]
[1646609099958,5.928,84.387,84.292,23.7014]
[1646609100159,6.44614984,84.386,84.292,23.7014]
[1646609100358,145.7182,84.385,84.292,23.7014]
[1646609100561,145.7182,84.385,84.293,61.706422]
[1646609101159,117.0,84.379,84.3,17.7935]
[1646609101361,117.0,84.377,84.3,17.7935]
[1646609101565,17.7919,84.38,84.3,17.7935]
[1646609102663,119.37487509,84.379,84.238,117.0]
[1646609102863,17.8024,84.35,84.27,13.94]
[1646609103467,117.0,84.348,84.27,13.94]
[1646609103664,117.0,84.346,84.24,31.7464]
[1646609103862,117.0,84.329,84.22,13.94]
[1646609104064,146.6427,84.329,84.22,13.94]
[1646609104264,117.0,84.327,84.22,13.94]
[1646609104468,117.0,84.325,84.22,13.94]
[1646609104664,59.3716,84.31,84.23,17.8102]
[1646609104865,122.933,84.309,84.23,17.8102]
[1646609105268,117.0,84.299,84.221,49.16191593]
[1646609105466,117.0,84.297,84.2,13.94]
[1646609105668,117.0,84.297,84.19,90.7292]
[1646609105867,117.0,84.295,84.19,90.7292]
[1646609106067,117.0,84.289,84.19,90.7292]
[1646609106266,17.8156,84.28,84.19,90.7292]
[1646609106467,117.0,84.279,84.191,57.69924435]
[1646609106666,122.934,84.279,84.191,57.69924435]
[1646609106865,117.0,84.279,84.191,57.69924435]
[1646609107265,17.8164,84.27,84.2,17.8164]
[1646609107470,17.8164,84.27,84.169,6.139869]
[1646609107471,128.10146449,84.269,84.169,6.139869]
[1646609107665,128.10146449,84.269,84.15,47.5582]
[1646609107666,0.17094557,84.268,84.15,47.5582]
[1646609107866,117.0,84.266,84.16,13.94]
[1646609108066,5.937,84.267,84.16,13.94]
[1646609108067,117.0,84.264,84.16,13.94]
[1646609108268,117.0,84.264,84.161,62.75709919]
[1646609108567,121.68700141,84.259,84.18,17.8204]
[1646609108767,117.0,84.257,84.181,52.81586434]
[1646609108967,5.936,84.256,84.181,52.81586434]
[1646609109366,5.936,84.262,84.181,52.81586434]
[1646609109565,5.936,84.262,84.19,17.8164]
[1646609109966,17.8168,84.28,84.19,17.8164]
[1646609110168,5.936,84.268,84.19,17.8164]
[1646609110568,5.936,84.298,84.191,117.0]
[1646609110766,5.936,84.298,84.191,139.97164933]
[1646609110994,5.936,84.298,84.21,17.81]
[1646609111189,47.4184,84.309,84.21,17.81]
[1646609111190,5.934,84.308,84.211,175.02087708]
[1646609111391,5.934,84.308,84.212,0.1316183]
[1646609111589,47.4184,84.309,84.212,0.1316183]
[1646609111989,117.0,84.325,84.212,0.1316183]
[1646609112191,117.0,84.323,84.24,17.7996]
[1646609112390,117.0,84.321,84.241,53.10761599]
[1646609112593,5.932,84.32,84.241,53.10761599]
[1646609113191,5.932,84.32,84.25,17.8046]
[1646609113391,117.0,84.331,84.25,17.8046]
[1646609113603,117.0,84.329,84.25,17.8046]
[1646609113891,117.0,84.327,84.25,17.8046]
[1646609114091,117.0,84.325,84.241,53.10761599]
[1646609114292,117.0,84.319,84.241,53.10761599]
[1646609114692,117.0,84.317,84.22,13.94]
[1646609115092,117.0,84.315,84.22,13.94]
[1646609115293,117.0,84.313,84.22,13.94]
[1646609115493,5.933,84.312,84.23,17.8087]
[1646609115692,140.5869,84.323,84.231,51.22064336]
[1646609115893,117.0,84.321,84.231,51.22064336]
[1646609116095,117.0,84.319,84.231,51.22064336]
[1646609116294,117.0,84.317,84.231,51.22064336]
[1646609116494,117.0,84.317,84.24,17.806]
[1646609117095,117.0,84.315,84.24,17.806]
[1646609117896,117.0,84.313,84.231,51.22064336]
[1646609118195,117.0,84.311,84.231,51.22064336]
[1646609118395,117.0,84.309,84.231,51.22064336]
[1646609118599,117.0,84.307,84.231,51.22064336]
[1646609118997,5.933,84.306,84.231,51.22064336]
[1646609119296,5.933,84.314,84.24,17.8078]
[1646609119706,24.59911753,84.315,84.24,17.8078]
[1646609119707,117.0,84.313,84.24,17.8078]
[1646609119897,117.0,84.314,84.24,17.8078]
[1646609120299,5.932,84.322,84.24,17.8078]
[1646609120914,23.5869,84.323,84.24,17.8078]
[1646609121298,23.5869,84.323,84.241,117.0]
[1646609121498,5.932,84.322,84.241,117.0]
[1646609121699,5.932,84.339,84.261,47.93594944]
[1646609122500,24.59911753,84.34,84.261,47.93594944]
[1646609122700,24.537,84.341,84.261,47.93594944]
[1646609123100,24.537,84.341,84.27,17.7996]
[1646609123304,5.93,84.35,84.27,31.7396]
[1646609123501,5.93,84.35,84.271,117.0]
[1646609123704,24.59911753,84.366,84.271,117.0]
[1646609123901,26.12213838,84.366,84.271,117.0]
[1646609124100,26.12213838,84.366,84.272,0.20663598]
[1646609124300,1.52302085,84.36,84.291,46.98933935]
[1646609124702,1.52302085,84.359,84.291,46.98933935]
[1646609124901,1.52302085,84.363,84.292,117.0]
[1646609125101,1.52302085,84.37,84.292,7.59]
[1646609125303,1.52302085,84.37,84.311,55.14782369]
[1646609125502,1.52302085,84.372,84.311,55.14782369]
[1646609125702,5.928,84.393,84.311,55.14782369]
[1646609125703,1.52302085,84.373,84.311,55.14782369]
[1646609125902,1.52302085,84.382,84.312,0.20663598]
[1646609126503,1.52302085,84.385,84.312,0.20663598]
[1646609126706,1.52302085,84.385,84.32,17.7901]
[1646609126905,1.52302085,84.385,84.32,31.7301]
[1646609127405,1.52302085,84.386,84.32,31.7301]
[1646609128007,1.52302085,84.388,84.32,31.7301]
[1646609128408,1.52302085,84.393,84.321,117.20663598]
[1646609128609,1.52302085,84.393,84.34,17.7815]
[1646609128812,1.52302085,84.42,84.341,167.64513505]
[1646609129209,1.52302085,84.427,84.341,167.64513505]
[1646609129413,1.52302085,84.429,84.341,50.64513505]
[1646609129609,1.52302085,84.431,84.342,117.0]
[1646609129810,1.52302085,84.428,84.341,50.64513505]
[1646609130009,1.52302085,84.427,84.36,17.7743]
[1646609130211,1.52302085,84.423,84.361,47.81922672]
[1646609130409,1.52302085,84.43,84.361,47.81922672]
[1646609130610,1.52302085,84.436,84.361,47.81922672]
[1646609130810,1.52302085,84.437,84.361,47.81922672]
[1646609131010,23.3655,84.458,84.37,17.7789]
[1646609131210,23.3655,84.458,84.37,31.7189]
[1646609131612,5.923,84.457,84.37,31.7189]
[1646609132009,23.3655,84.458,84.37,31.7189]
[1646609132209,23.3655,84.458,84.37,41.4089]
[1646609132611,5.923,84.47,84.371,117.15814027]
[1646609132810,5.922,84.472,84.4,17.7661]
[1646609133010,5.921,84.483,84.401,52.33402508]
[1646609133209,23.03911753,84.488,84.402,0.15814027]
[1646609133811,23.03911753,84.488,84.42,17.7659]
[1646609134114,23.03911753,84.5,84.421,59.68699864]
[1646609134610,22.03911753,84.499,84.421,59.68699864]
[1646609134910,5.918,84.498,84.44,17.765]
[1646609135110,5.918,84.498,84.441,53.41529594]
[1646609135311,5.918,84.498,84.441,30.87145174]
[1646609135610,5.918,84.505,84.441,30.87145174]
[1646609136114,5.918,84.506,84.42,13.94]
[1646609136314,25.33393023,84.504,84.4,13.94]
[1646609136515,12.51049763,84.503,84.4,13.94]
[1646609136718,122.76887636,84.502,84.38,13.94]
[1646609136915,35.91284288,84.501,84.38,13.94]
[1646609137140,0.27829678,84.499,84.41,17.7701]
[1646609137340,0.27829678,84.499,84.411,64.2174761]
[1646609137541,25.32231145,84.498,84.411,64.2174761]
[1646609137742,2.36986059,84.498,84.411,64.2174761]
[1646609137943,0.27829678,84.499,84.411,64.2174761]
[1646609138141,0.27829678,84.499,84.42,17.7675]
[1646609138342,5.918,84.53,84.42,31.7075]
[1646609138544,6.44048487,84.529,84.42,31.7075]
[1646609138744,5.918,84.528,84.411,64.2174761]
[1646609138945,6.58747517,84.527,84.411,64.2174761]
[1646609139247,17.7663,84.52,84.411,64.2174761]
[1646609139446,5.918,84.519,84.411,64.2174761]
[1646609139845,21.26124667,84.519,84.411,64.2174761]
[1646609140049,0.20904757,84.517,84.411,64.2174761]
[1646609140247,17.7668,84.51,84.411,64.2174761]
[1646609140445,0.20904757,84.508,84.411,64.2174761]
[1646609140647,117.20904757,84.508,84.411,64.2174761]
[1646609140847,117.0,84.506,84.411,64.2174761]
[1646609141050,117.0,84.504,84.41,13.94]
[1646609141250,5.04319395,84.502,84.35,174.31]
[1646609141551,0.47049396,84.499,84.38,31.7129]
[1646609141752,0.47049396,84.497,84.38,31.7129]
[1646609141947,12.36305719,84.496,84.38,31.7129]
[1646609142145,0.47049396,84.495,84.381,62.64642607]
[1646609142348,5.921,84.494,84.39,17.7704]
[1646609142547,0.47049396,84.493,84.4,13.94]
[1646609142747,0.47049396,84.493,84.401,53.87636305]
[1646609142948,0.47049396,84.5,84.401,53.87636305]
[1646609143147,5.92,84.499,84.401,53.87636305]
[1646609143347,0.47049396,84.498,84.401,53.87636305]
[1646609143550,5.92,84.497,84.401,53.87636305]
[1646609143748,0.47049396,84.496,84.401,53.87636305]
[1646609143948,5.92,84.495,84.401,53.87636305]
[1646609144250,0.47049396,84.494,84.401,53.87636305]
[1646609144448,4.55164103,84.492,84.401,53.87636305]
[1646609144647,17.7712,84.49,84.401,53.87636305]
[1646609144848,5.92,84.489,84.401,53.87636305]
[1646609145052,5.921,84.49,84.401,53.87636305]
[1646609145250,5.921,84.49,84.401,63.04636305]
[1646609145653,0.47049396,84.491,84.401,63.04636305]
[1646609145852,19.45993765,84.493,84.401,63.04636305]
[1646609146251,5.92,84.492,84.401,63.04636305]
[1646609146452,30.7286,84.492,84.401,63.04636305]
[1646609147053,29.7286,84.492,84.401,63.04636305]
[1646609149054,17.7706,84.49,84.401,53.87636305]
[1646609149255,6.60535788,84.489,84.401,53.87636305]
[1646609149460,117.0,84.488,84.401,53.87636305]
[1646609149656,117.0,84.474,84.401,53.87636305]
[1646609149857,122.921,84.473,84.401,53.87636305]
[1646609150055,0.4205423,84.472,84.401,53.87636305]
[1646609150258,0.4205423,84.469,84.37,13.94]
[1646609150460,0.48270243,84.465,84.3,174.31]
[1646609150660,3.06648914,84.437,84.301,46.8675]
[1646609150860,3.06648914,84.426,84.287,75.1262]
[1646609151055,3.06648914,84.424,84.29,13.94]
[1646609151256,117.48270243,84.399,84.291,61.22070429]
[1646609151455,0.48270243,84.396,84.291,61.22070429]
[1646609151671,0.48270243,84.393,84.291,61.22070429]
[1646609151858,0.48270243,84.39,84.291,61.22070429]
[1646609152062,0.48270243,84.387,84.291,61.22070429]
[1646609152256,117.0,84.369,84.291,61.22070429]
[1646609152456,0.48270243,84.366,84.291,61.22070429]
[1646609152660,5.929,84.365,84.291,61.22070429]
[1646609152857,0.48270243,84.366,84.291,61.22070429]
[1646609153058,2.37009391,84.365,84.291,61.22070429]
[1646609153259,0.48270243,84.366,84.291,61.22070429]
[1646609153660,0.48270243,84.366,84.292,117.0]
[1646609154459,0.48270243,84.366,84.3,17.7955]
[1646609154665,0.48270243,84.366,84.3,31.7355]
[1646609155060,0.48270243,84.366,84.3,13.94]
[1646609155260,5.928,84.384,84.291,61.22070429]
[1646609155660,17.7958,84.37,84.3,17.7949]
[1646609155860,2.37009391,84.383,84.3,17.7949]
[1646609156261,5.928,84.382,84.3,17.7949]
[1646609156661,5.928,84.382,84.3,31.7349]
[1646609157264,2.37009391,84.381,84.32,17.7895]
[1646609157461,23.9021,84.385,84.321,58.44439446]
[1646609157661,5.926,84.398,84.321,58.44439446]
[1646609158062,143.40531715,84.341,84.321,58.44439446]
[1646609158561,143.40531715,84.341,84.33,17.7879]
[1646609159160,24.4133,84.399,84.33,17.7879]
[1646609159363,5.926,84.41,84.331,117.0]
[1646609159563,46.312,84.447,84.35,17.7799]
[1646609159564,2.37009391,84.418,84.35,17.7799]
[1646609159866,2.37009391,84.418,84.351,117.18036793]
[1646609160064,2.37009391,84.428,84.351,117.18036793]
[1646609160264,5.924,84.439,84.351,117.18036793]
[1646609160465,5.924,84.445,84.353,117.0]
[1646609160664,5.924,84.446,84.354,0.18036793]
[1646609160864,46.312,84.447,84.37,17.7755]
[1646609161063,46.312,84.447,84.37,26.8555]
[1646609161263,46.312,84.447,84.37,40.7955]
[1646609161465,46.312,84.447,84.371,55.28143024]
[1646609162269,12.36912808,84.446,84.371,55.28143024]
[1646609162469,123.44612808,84.445,84.371,55.28143024]
[1646609162666,5.923,84.444,84.371,55.28143024]
[1646609162868,46.312,84.447,84.371,55.28143024]
[1646609163065,46.312,84.447,84.371,62.28143024]
[1646609163266,46.312,84.447,84.38,17.7775]
[1646609163466,2.37009391,84.465,84.38,17.7775]
[1646609163766,11.72256086,84.464,84.38,17.7775]
[1646609163968,5.922,84.463,84.38,17.7775]
[1646609164370,17.777,84.46,84.38,17.7775]
[1646609164566,5.922,84.459,84.38,17.7775]
[1646609164969,5.922,84.463,84.38,17.7775]
[1646609165167,6.44514512,84.462,84.38,17.7775]
[1646609165367,5.922,84.461,84.38,17.7775]
[1646609165568,6.44514512,84.46,84.38,17.7775]
[1646609165768,5.922,84.459,84.38,17.7775]
[1646609165968,8.29209391,84.459,84.38,17.7775]
[1646609166269,2.37009391,84.458,84.38,17.7775]
[1646609167269,2.37009391,84.458,84.381,117.0]
[1646609167473,23.0691,84.47,84.4,17.7663]
[1646609167671,23.0691,84.47,84.4,26.6063]
[1646609167971,5.921,84.476,84.403,117.0]
[1646609168174,2.37009391,84.494,84.411,117.0]
[1646609168371,5.921,84.493,84.43,17.7606]
[1646609168571,2.37009391,84.504,84.431,117.0]
[1646609168770,3.06648914,84.509,84.431,117.0]
[1646609168971,3.06648914,84.521,84.431,117.0]
[1646609169172,10.84416827,84.519,84.433,117.0]
[1646609169370,10.84416827,84.519,84.432,62.23235606]
[1646609169571,6.44158462,84.518,84.432,62.23235606]
[1646609169971,2.37009391,84.517,84.432,62.23235606]
[1646609170174,3.06648914,84.507,84.432,62.23235606]
[1646609170371,3.06648914,84.504,84.43,13.94]
[1646609170573,17.7716,84.5,84.41,13.94]
[1646609170772,113.4,84.484,84.41,13.94]
[1646609170992,0.23110193,84.483,84.41,13.94]
[1646609171191,5.92,84.482,84.39,13.94]
[1646609171392,10.61298458,84.481,84.391,47.29558658]
[1646609171592,6.44158462,84.48,84.391,47.29558658]
[1646609172191,2.37324365,84.479,84.391,47.29558658]
[1646609172392,6.44158462,84.478,84.391,47.29558658]
[1646609172592,6.44158462,84.478,84.392,117.0]
[1646609172797,2.37324365,84.477,84.392,125.48]
[1646609172992,2.37324365,84.477,84.401,117.0]
[1646609173492,2.37324365,84.477,84.4,13.94]
[1646609173893,12.45399277,84.476,84.4,13.94]
[1646609174193,2.37324365,84.475,84.4,31.7094]
[1646609174392,2.37324365,84.475,84.401,117.0]
[1646609174592,47.4813,84.483,84.401,117.0]
[1646609175296,58.19404252,84.483,84.401,117.0]
[1646609175893,58.19404252,84.483,84.4,13.94]
[1646609176096,0.16494173,84.481,84.4,13.94]
[1646609176294,0.16494173,84.479,84.391,47.29558658]
[1646609176494,0.16494173,84.477,84.391,47.29558658]
[1646609176894,2.37324365,84.478,84.392,117.0]
[1646609177095,2.37324365,84.476,84.392,117.0]
[1646609177596,2.37324365,84.476,84.391,47.29558658]
[1646609177994,74.63234683,84.483,84.391,47.29558658]
[1646609178196,5.921,84.482,84.391,47.29558658]
[1646609178804,5.921,84.483,84.392,117.0]
[1646609179001,5.921,84.483,84.401,117.0]
[1646609179202,113.4,84.484,84.41,13.94]
[1646609179406,113.4,84.484,84.411,56.53827514]
[1646609181204,113.4,84.484,84.41,13.94]
[1646609181406,113.4,84.484,84.38,17.7705]
[1646609181407,117.0,84.482,84.35,233.5549]
[1646609181606,0.18124564,84.48,84.38,13.94]
[1646609182005,8.29424365,84.479,84.38,13.94]
[1646609182305,8.29424365,84.479,84.386,63.81298546]
[1646609182505,2.37324365,84.478,84.386,63.81298546]
[1646609182706,5.921,84.477,84.386,63.81298546]
[1646609182910,3.84985291,84.475,84.386,63.81298546]
[1646609183107,5.922,84.474,84.386,63.81298546]
[1646609183306,3.73591424,84.475,84.386,63.81298546]
[1646609183608,2.37324365,84.474,84.386,63.81298546]
[1646609183808,3.06648914,84.489,84.39,13.94]
[1646609184010,5.922,84.501,84.39,13.94]
[1646609184011,5.922,84.501,84.391,117.0]
[1646609184209,16.43830431,84.505,84.391,123.56]
[1646609184609,10.30604981,84.49,84.41,17.7628]
[1646609184812,10.30604981,84.49,84.411,54.99611074]
[1646609185817,5.92,84.489,84.411,54.99611074]
[1646609186213,5.92,84.483,84.411,54.99611074]
[1646609186412,5.92,84.483,84.4,13.94]
[1646609187512,5.92,84.483,84.401,60.20203606]
[1646609187812,6.44428841,84.482,84.401,60.20203606]
[1646609188124,5.921,84.481,84.401,60.20203606]
[1646609188312,3.06648914,84.479,84.401,60.20203606]
[1646609188514,2.6503613,84.477,84.401,60.20203606]
[1646609188714,3.06648914,84.472,84.401,60.20203606]
[1646609189115,5.921,84.471,84.401,60.20203606]
[1646609189641,6.44428841,84.47,84.401,60.20203606]
[1646609189819,5.921,84.469,84.401,60.20203606]
[1646609190016,3.06648914,84.475,84.401,60.20203606]
[1646609190417,2.37324365,84.475,84.401,60.20203606]
[1646609190626,15.43189818,84.474,84.401,60.20203606]
[1646609190815,10.12352315,84.469,84.401,60.20203606]
[1646609191016,3.06648914,84.463,84.401,60.20203606]
[1646609191216,3.06648914,84.463,84.38,13.94]
[1646609191417,10.02648914,84.463,84.38,13.94]
[1646609191617,3.06648914,84.461,84.38,13.94]
[1646609191818,3.06648914,84.461,84.351,46.1543]
[1646609191819,3.06648914,84.451,84.36,13.94]
[1646609192022,3.06648914,84.442,84.315,103.7829]
[1646609192221,3.06648914,84.436,84.331,52.54526565]
[1646609192419,3.06648914,84.429,84.331,52.54526565]
[1646609192620,0.4649185,84.428,84.332,117.0]
[1646609192819,6.44440904,84.427,84.332,117.0]
[1646609193019,10.12352315,84.426,84.332,117.0]
[1646609193224,10.12352315,84.426,84.331,52.54526565]
[1646609193417,0.4649185,84.425,84.331,52.54526565]
[1646609193620,5.925,84.424,84.331,52.54526565]
[1646609193818,117.4649185,84.423,84.33,13.94]
[1646609194021,5.925,84.422,84.33,13.94]
[1646609194221,6.91340268,84.421,84.33,13.94]
[1646609194419,5.925,84.42,84.33,13.94]
[1646609194820,31.16199731,84.419,84.321,23.1356]
[1646609195020,117.4649185,84.417,84.27,17.7956]
[1646609195321,3.06648914,84.409,84.28,13.94]
[1646609195523,3.06648914,84.404,84.29,13.94]
[1646609195725,0.4649185,84.402,84.291,117.0]
[1646609195920,2.83288796,84.4,84.292,64.59975656]
[1646609196120,5.926,84.399,84.292,64.59975656]
[1646609196322,23.9946,84.398,84.292,64.59975656]
[1646609196522,5.928,84.397,84.292,64.59975656]
[1646609196723,8.30124365,84.397,84.292,64.59975656]
[1646609196922,8.30124365,84.397,84.293,117.0]
[1646609197146,2.37324365,84.396,84.301,117.0]
[1646609197725,2.37324365,84.396,84.3,31.7299]
[1646609197925,5.926,84.395,84.3,13.94]
[1646609198123,17.7948,84.39,84.292,64.59975656]
[1646609198327,5.928,84.389,84.292,64.59975656]
[1646609198527,5.928,84.389,84.28,13.94]
[1646609198725,93.11384186,84.388,84.28,13.94]
[1646609198924,76.048,84.387,84.26,13.94]
[1646609199125,76.048,84.387,84.257,117.0]
[1646609199126,117.0,84.379,84.257,117.0]
[1646609199325,0.20747304,84.376,84.257,117.0]
[1646609199526,117.0,84.374,84.258,54.09363174]
[1646609199737,117.20747304,84.372,84.258,54.09363174]
[1646609199926,130.94,84.37,84.258,54.09363174]
[1646609200126,0.20747304,84.369,84.258,54.09363174]
[1646609200325,117.0,84.367,84.258,54.09363174]
[1646609200526,117.0,84.365,84.258,54.09363174]
[1646609200725,119.83288796,84.363,84.258,54.09363174]
[1646609201127,117.0,84.359,84.258,54.09363174]
[1646609201527,2.36944325,84.358,84.258,54.09363174]
[1646609202326,119.36944325,84.358,84.258,54.09363174]
[1646609202527,119.36944325,84.358,84.26,17.7987]
[1646609202728,2.36944325,84.357,84.26,17.7987]
[1646609203128,2.36944325,84.357,84.261,117.0]
[1646609203328,2.36944325,84.357,84.262,0.10531333]
[1646609203531,5.93,84.356,84.26,31.7378]
[1646609204028,2.36944325,84.355,84.26,31.7378]
[1646609204234,5.93,84.354,84.26,31.7378]
[1646609204428,5.93,84.354,84.26,13.94]
[1646609204651,8.29944325,84.354,84.26,13.94]
[1646609205151,22.93,84.353,84.26,13.94]
[1646609205452,5.93,84.352,84.26,13.94]
[1646609206053,5.93,84.352,84.261,117.0]
[1646609206251,22.93,84.353,84.261,117.0]
[1646609206551,5.93,84.352,84.26,13.44]
[1646609206751,2.36944325,84.353,84.261,115.5]
[1646609206951,2.36944325,84.353,84.262,0.12433132]
[1646609207153,23.8275,84.364,84.271,115.5]
[1646609207351,119.36944325,84.363,84.27,13.94]
[1646609207552,9.89888333,84.361,84.271,61.24495084]
[1646609207751,5.93,84.36,84.271,61.24495084]
[1646609208150,8.29944325,84.36,84.271,61.24495084]
[1646609208351,143.61771715,84.359,84.27,13.94]
[1646609208555,117.0,84.357,84.25,37.6122]
[1646609208753,117.0,84.355,84.25,37.6122]
[1646609208951,117.0,84.353,84.25,37.6122]
[1646609209152,5.931,84.352,84.25,37.6122]
[1646609209455,2.36944325,84.352,84.26,17.7982]
[1646609209655,8.29944325,84.351,84.26,17.7982]
[1646609209861,8.29944325,84.351,84.261,117.0]
[1646609210055,2.36944325,84.351,84.261,117.0]
[1646609210459,2.36944325,84.351,84.28,17.7933]
[1646609210760,5.93,84.35,84.281,55.65216156]
[1646609211364,2.36944325,84.349,84.282,117.0]
[1646609211559,5.93,84.358,84.29,17.7921]
[1646609211760,5.93,84.358,84.29,31.7321]
[1646609211960,22.7214,84.359,84.29,31.7321]
[1646609212361,5.929,84.358,84.291,117.0]
[1646609212561,5.929,84.377,84.3,17.79]
[1646609212766,5.928,84.378,84.3,17.79]
[1646609212963,2.36944325,84.388,84.301,117.0]
[1646609213162,5.928,84.378,84.301,117.0]
[1646609213362,2.36944325,84.398,84.301,117.0]
[1646609213363,5.928,84.397,84.302,0.22856531]
[1646609213562,14.3454065,84.398,84.303,117.0]
[1646609213772,2.36944325,84.396,84.304,0.22856531]
[1646609213962,2.36944325,84.396,84.31,17.7874]
[1646609214161,5.926,84.395,84.32,13.94]
[1646609214363,5.926,84.395,84.321,54.80782623]
[1646609214562,8.29544325,84.395,84.321,54.80782623]
[1646609214764,2.36944325,84.395,84.321,54.80782623]
[1646609214962,5.926,84.394,84.321,54.80782623]
[1646609215162,2.36944325,84.395,84.321,54.80782623]
[1646609215362,2.36944325,84.393,84.321,54.80782623]
[1646609216470,50.49902478,84.393,84.321,54.80782623]
[1646609216666,5.926,84.392,84.321,54.80782623]
[1646609216867,47.6502,84.399,84.321,54.80782623]
[1646609217967,47.6502,84.399,84.33,17.7836]
[1646609218775,24.2482739,84.407,84.33,17.7836]
[1646609219069,5.926,84.406,84.33,17.7836]
[1646609219270,5.926,84.419,84.33,17.7836]
[1646609219669,24.2482739,84.418,84.33,17.7836]
[1646609219969,17.0359786,84.417,84.321,54.80782623]
[1646609220370,24.2482739,84.416,84.321,54.80782623]
[1646609220575,5.926,84.415,84.32,13.94]
[1646609220772,123.61333773,84.414,84.32,13.94]
[1646609220971,3.06648914,84.411,84.301,22.5657]
[1646609221275,3.06648914,84.408,84.301,22.5657]
[1646609221470,6.22477007,84.407,84.301,22.5657]
[1646609221671,6.22477007,84.407,84.302,165.18015307]
[1646609221871,18.80774756,84.407,84.302,165.18015307]
[1646609222075,16.43830431,84.407,84.31,17.7878]
[1646609222273,16.43830431,84.407,84.31,31.7278]